[Event "*** Titled Tuesday Blitz"]
[Site "Chess.com"]
[Date "2019.01.01"]
[Round "7"]
[White "bugsbunny444"]
[Black "Rainmond"]
[Result "1-0"]
[WhiteElo "2544"]
[BlackElo "2768"]
[TimeControl "180+2"]
[EndTime "14:40:50 PST"]
[Termination "bugsbunny444 won by resignation"]

1. Nf3 {[%clk 0:03:01.9]} 1... c5 {[%clk 0:02:27.1]} 2. c4 {[%clk 0:03:01.6]}
2... Nf6 {[%clk 0:02:27.5]} 3. g3 {[%clk 0:03:02.7]} 3... g6 {[%clk 0:02:28.5]}
4. b3 {[%clk 0:03:04.2]} 4... Bg7 {[%clk 0:02:29.7]} 5. Bb2 {[%clk 0:03:05.9]}
5... O-O {[%clk 0:02:31]} 6. Bg2 {[%clk 0:03:07.6]} 6... Nc6 {[%clk 0:02:31.5]}
7. O-O {[%clk 0:03:09.1]} 7... d5 {[%clk 0:02:32.4]} 8. cxd5 {[%clk 0:03:10.1]}
8... Qxd5 {[%clk 0:02:33.6]} 9. Ne5 {[%clk 0:03:10]} 9... Qd6 {[%clk 0:02:24.7]}
10. Nxc6 {[%clk 0:03:10.1]} 10... bxc6 {[%clk 0:02:26.1]} 11. d3 {[%clk
0:03:06.5]} 11... Nd5 {[%clk 0:02:25]} 12. Bxg7 {[%clk 0:03:02]} 12... Kxg7
{[%clk 0:02:26.8]} 13. Qc2 {[%clk 0:02:58]} 13... Bg4 {[%clk 0:02:18.1]} 14. Nd2
{[%clk 0:02:47.9]} 14... Nb4 {[%clk 0:02:07.8]} 15. Qb2+ {[%clk 0:02:34.3]}
15... Qd4 {[%clk 0:02:06.2]} 16. Qxd4+ {[%clk 0:02:07.7]} 16... cxd4 {[%clk
0:02:08]} 17. Bf3 {[%clk 0:02:05.3]} 17... Bxf3 {[%clk 0:02:07.7]} 18. Nxf3
{[%clk 0:02:06.3]} 18... c5 {[%clk 0:02:08.7]} 19. Rfc1 {[%clk 0:02:03.2]} 19...
Rfc8 {[%clk 0:02:09.1]} 20. a3 {[%clk 0:01:17.6]} 20... Nd5 {[%clk 0:02:09.3]}
21. b4 {[%clk 0:01:18.9]} 21... Nc3 {[%clk 0:01:58]} 22. Kf1 {[%clk 0:01:20]}
22... cxb4 {[%clk 0:01:59]} 23. axb4 {[%clk 0:01:07.6]} 23... Nb5 {[%clk
0:01:47]} 24. Rc4 {[%clk 0:00:58.5]} 24... f6 {[%clk 0:01:31.4]} 25. Ra5 {[%clk
0:00:58]} 25... a6 {[%clk 0:01:24.7]} 26. Nxd4 {[%clk 0:00:39.1]} 26... Rxc4
{[%clk 0:01:21.2]} 27. Ne6+ {[%clk 0:00:40.2]} 27... Kf7 {[%clk 0:01:21.8]} 28.
dxc4 {[%clk 0:00:41.6]} 28... Nd6 {[%clk 0:01:22.9]} 29. Nc5 {[%clk 0:00:37.6]}
29... Nxc4 {[%clk 0:01:20.5]} 30. Rxa6 {[%clk 0:00:38.9]} 30... Rb8 {[%clk
0:01:21.3]} 31. Nd3 {[%clk 0:00:37.9]} 31... h5 {[%clk 0:01:20.9]} 32. h4 {[%clk
0:00:34.4]} 32... Nd2+ {[%clk 0:01:14.8]} 33. Ke1 {[%clk 0:00:31.6]} 33... Ne4
{[%clk 0:01:16.7]} 34. Rc6 {[%clk 0:00:18.9]} 34... Ra8 {[%clk 0:01:16.2]} 35.
Rc1 {[%clk 0:00:20]} 35... Ra3 {[%clk 0:01:15.6]} 36. Rb1 {[%clk 0:00:20.1]}
36... Nc3 {[%clk 0:01:14]} 37. Rb2 {[%clk 0:00:20.7]} 37... Ne4 {[%clk
0:01:06.2]} 38. Rb1 {[%clk 0:00:22]} 38... Ke8 {[%clk 0:00:57.3]} 39. b5 {[%clk
0:00:23]} 39... Kd7 {[%clk 0:00:58.2]} 40. b6 {[%clk 0:00:24]} 40... Kc8 {[%clk
0:00:58.9]} 41. b7+ {[%clk 0:00:19.5]} 41... Kb8 {[%clk 0:00:59.7]} 42. Nb4
{[%clk 0:00:13.5]} 42... Nc3 {[%clk 0:00:31.2]} 43. Nc6+ {[%clk 0:00:14.5]}
43... Kc7 {[%clk 0:00:30.1]} 44. b8=Q+ {[%clk 0:00:15.9]} 44... Kxc6 {[%clk
0:00:31.5]} 45. Qb6+ {[%clk 0:00:10.7]} 45... Kd5 {[%clk 0:00:31.1]} 46. Rd1+
{[%clk 0:00:05.9]} 46... Nxd1 {[%clk 0:00:30.8]} 47. Kxd1 {[%clk 0:00:07.8]}
47... Ra1+ {[%clk 0:00:31.5]} 48. Kd2 {[%clk 0:00:09.3]} 48... Ra2+ {[%clk
0:00:32.9]} 49. Kd3 {[%clk 0:00:05.6]} 49... Ra3+ {[%clk 0:00:34]} 50. Kc2
{[%clk 0:00:06.8]} 50... Ra2+ {[%clk 0:00:35.4]} 51. Kc3 {[%clk 0:00:08.2]}
51... Ra3+ {[%clk 0:00:30.7]} 52. Kb2 {[%clk 0:00:08.7]} 1-0

[Event "*** Titled Tuesday Blitz"]
[Site "Chess.com"]
[Date "2019.01.01"]
[Round "7"]
[White "ama18"]
[Black "Fins0905"]
[Result "1-0"]
[WhiteElo "2459"]
[BlackElo "2563"]
[TimeControl "180+2"]
[EndTime "14:40:50 PST"]
[Termination "ama18 won by resignation"]

1. e4 {[%clk 0:03:01.9]} 1... d5 {[%clk 0:02:59.5]} 2. exd5 {[%clk 0:03:02.4]}
2... Qxd5 {[%clk 0:03:01.4]} 3. Nc3 {[%clk 0:03:03.5]} 3... Qa5 {[%clk
0:03:02.1]} 4. d4 {[%clk 0:03:04.8]} 4... Nf6 {[%clk 0:03:02.9]} 5. Bc4 {[%clk
0:03:05]} 5... c6 {[%clk 0:03:03.9]} 6. Ne2 {[%clk 0:03:05.7]} 6... Bf5 {[%clk
0:02:58.7]} 7. O-O {[%clk 0:03:05.3]} 7... e6 {[%clk 0:02:59.2]} 8. f3 {[%clk
0:03:06.3]} 8... Nbd7 {[%clk 0:02:56.6]} 9. Ng3 {[%clk 0:03:05.9]} 9... Bg6
{[%clk 0:02:57.3]} 10. Bb3 {[%clk 0:03:06.3]} 10... Qc7 {[%clk 0:02:54]} 11. Kh1
{[%clk 0:03:05.1]} 11... Bd6 {[%clk 0:02:52.3]} 12. f4 {[%clk 0:02:59.6]} 12...
O-O-O {[%clk 0:02:46]} 13. Qe2 {[%clk 0:02:55.9]} 13... Rde8 {[%clk 0:02:25.5]}
14. Nce4 {[%clk 0:02:54.8]} 14... h5 {[%clk 0:02:19.3]} 15. Ng5 {[%clk
0:02:34.6]} 15... h4 {[%clk 0:02:09.9]} 16. N3e4 {[%clk 0:02:35.3]} 16... h3
{[%clk 0:02:09.1]} 17. g3 {[%clk 0:02:32.8]} 17... Nxe4 {[%clk 0:01:55.4]} 18.
Nxe4 {[%clk 0:02:31.9]} 18... Nf6 {[%clk 0:01:56.3]} 19. Nxd6+ {[%clk 0:02:26]}
19... Qxd6 {[%clk 0:01:58.2]} 20. Be3 {[%clk 0:02:27.5]} 20... Be4+ {[%clk
0:01:17.3]} 21. Kg1 {[%clk 0:02:26]} 21... Bg2 {[%clk 0:01:15.7]} 22. Rfd1
{[%clk 0:02:26.1]} 22... Nh5 {[%clk 0:00:47.5]} 23. Bf2 {[%clk 0:02:15]} 23...
f6 {[%clk 0:00:39.6]} 24. Re1 {[%clk 0:02:07.2]} 24... Kb8 {[%clk 0:00:36.6]}
25. Rad1 {[%clk 0:01:49.3]} 25... Ka8 {[%clk 0:00:25.4]} 26. c4 {[%clk 0:01:49]}
26... g6 {[%clk 0:00:17.3]} 27. Qe3 {[%clk 0:01:43.4]} 27... Qb8 {[%clk
0:00:14.5]} 28. a4 {[%clk 0:01:33.7]} 28... Rhg8 {[%clk 0:00:12.5]} 29. a5
{[%clk 0:01:32.5]} 29... g5 {[%clk 0:00:11.4]} 30. fxg5 {[%clk 0:01:32.4]} 30...
Rxg5 {[%clk 0:00:11.3]} 31. Ra1 {[%clk 0:01:31.3]} 31... a6 {[%clk 0:00:07.4]}
32. Bd1 {[%clk 0:01:29.5]} 32... Ng7 {[%clk 0:00:07.4]} 33. Bc2 {[%clk
0:01:29.3]} 33... Nf5 {[%clk 0:00:08.1]} 34. Bxf5 {[%clk 0:01:23.8]} 34... Rxf5
{[%clk 0:00:08.9]} 35. b4 {[%clk 0:01:25.2]} 35... Rf3 {[%clk 0:00:08.6]} 36.
Qe2 {[%clk 0:01:26]} 36... e5 {[%clk 0:00:08.7]} 37. dxe5 {[%clk 0:01:08.3]}
37... Rxe5 {[%clk 0:00:08.8]} 38. Qd2 {[%clk 0:01:09.5]} 38... Rff5 {[%clk
0:00:04]} 39. Qd4 {[%clk 0:01:09.3]} 39... c5 {[%clk 0:00:04.2]} 40. bxc5 {[%clk
0:01:06.4]} 40... Bc6 {[%clk 0:00:05.6]} 41. Rad1 {[%clk 0:01:00.9]} 41... Rxe1+
{[%clk 0:00:06.3]} 42. Rxe1 {[%clk 0:01:01.2]} 42... Re5 {[%clk 0:00:07.2]} 43.
Rd1 {[%clk 0:00:58.7]} 43... Re8 {[%clk 0:00:08.2]} 44. Qxf6 {[%clk 0:00:56.7]}
44... Qc8 {[%clk 0:00:07.4]} 45. Qf4 {[%clk 0:00:49.3]} 45... Qe6 {[%clk
0:00:04.8]} 46. Re1 {[%clk 0:00:40.8]} 46... Qg6 {[%clk 0:00:06]} 47. Rxe8+
{[%clk 0:00:39.4]} 47... Qxe8 {[%clk 0:00:07.9]} 48. Qe3 {[%clk 0:00:39.8]}
48... Qd7 {[%clk 0:00:07.6]} 49. Qd4 {[%clk 0:00:35.6]} 49... Qe8 {[%clk
0:00:08.5]} 50. Be3 {[%clk 0:00:31.5]} 50... Ka7 {[%clk 0:00:07.8]} 51. Kf2
{[%clk 0:00:29.4]} 51... Qg6 {[%clk 0:00:07.9]} 52. g4 {[%clk 0:00:15.2]} 52...
Qc2+ {[%clk 0:00:07.2]} 53. Bd2 {[%clk 0:00:16.5]} 53... Qd1 {[%clk 0:00:06.8]}
54. Qe3 {[%clk 0:00:15.2]} 54... Qf1+ {[%clk 0:00:06.6]} 55. Kxf1 {[%clk
0:00:15.6]} 1-0

[Event "*** Titled Tuesday Blitz"]
[Site "Chess.com"]
[Date "2019.01.01"]
[Round "7"]
[White "Blagorod"]
[Black "IngOscarArdila"]
[Result "1-0"]
[WhiteElo "2101"]
[BlackElo "2049"]
[TimeControl "180+2"]
[EndTime "14:40:53 PST"]
[Termination "Blagorod won on time"]

1. e4 {[%clk 0:03:01.9]} 1... e5 {[%clk 0:03:00.1]} 2. Nf3 {[%clk 0:03:02.3]}
2... Nf6 {[%clk 0:03:01.7]} 3. Nxe5 {[%clk 0:03:00.6]} 3... d6 {[%clk
0:03:02.9]} 4. Nf3 {[%clk 0:03:01.2]} 4... Nxe4 {[%clk 0:03:04.4]} 5. d4 {[%clk
0:03:02.7]} 5... Be7 {[%clk 0:03:05.2]} 6. Bd3 {[%clk 0:03:03.3]} 6... Nf6
{[%clk 0:03:06.7]} 7. O-O {[%clk 0:03:03.8]} 7... O-O {[%clk 0:03:08.6]} 8. c4
{[%clk 0:03:03.7]} 8... Nc6 {[%clk 0:03:09.2]} 9. d5 {[%clk 0:03:01.3]} 9... Nb8
{[%clk 0:03:02.5]} 10. h3 {[%clk 0:02:47.1]} 10... a5 {[%clk 0:03:02.9]} 11. Re1
{[%clk 0:02:44.1]} 11... Na6 {[%clk 0:03:01.9]} 12. Nd4 {[%clk 0:02:34.5]} 12...
Nc5 {[%clk 0:03:01.7]} 13. Bc2 {[%clk 0:02:34.9]} 13... Re8 {[%clk 0:03:00.7]}
14. Nc3 {[%clk 0:02:34.5]} 14... Bf8 {[%clk 0:03:00.1]} 15. Bg5 {[%clk
0:02:30.1]} 15... Rxe1+ {[%clk 0:02:48.4]} 16. Qxe1 {[%clk 0:02:29.1]} 16... g6
{[%clk 0:02:48.6]} 17. Qe3 {[%clk 0:02:19.4]} 17... Bg7 {[%clk 0:02:48.8]} 18.
Qf4 {[%clk 0:02:11]} 18... Ncd7 {[%clk 0:02:30]} 19. Ne4 {[%clk 0:02:03.9]}
19... Qe7 {[%clk 0:02:06.9]} 20. Nb5 {[%clk 0:01:54.2]} 20... Qe5 {[%clk
0:01:30.4]} 21. Qxe5 {[%clk 0:01:39]} 21... dxe5 {[%clk 0:01:31.6]} 22. Nxc7
{[%clk 0:01:35.3]} 22... Rb8 {[%clk 0:01:31.8]} 23. g4 {[%clk 0:01:16.3]} 23...
Nxe4 {[%clk 0:01:28.3]} 24. Bxe4 {[%clk 0:01:16.6]} 24... Nc5 {[%clk 0:01:29.4]}
25. Bc2 {[%clk 0:01:15.4]} 25... f5 {[%clk 0:01:26.6]} 26. gxf5 {[%clk
0:01:11.2]} 26... Bxf5 {[%clk 0:01:24.4]} 27. Bxf5 {[%clk 0:01:10.8]} 27... gxf5
{[%clk 0:01:26.3]} 28. d6 {[%clk 0:01:10.3]} 28... Kf7 {[%clk 0:01:22.3]} 29. b3
{[%clk 0:01:06.3]} 29... e4 {[%clk 0:01:22.5]} 30. Re1 {[%clk 0:01:02.5]} 30...
Be5 {[%clk 0:01:21.1]} 31. Be7 {[%clk 0:00:58.3]} 31... Nd3 {[%clk 0:01:14.5]}
32. Rd1 {[%clk 0:00:57.5]} 32... Bd4 {[%clk 0:01:10]} 33. Rd2 {[%clk 0:00:54.8]}
33... Rg8+ {[%clk 0:01:07]} 34. Kf1 {[%clk 0:00:54.5]} 34... Bb6 {[%clk
0:00:31.2]} 35. Nd5 {[%clk 0:00:55]} 35... Bc5 {[%clk 0:00:26.2]} 36. h4 {[%clk
0:00:35]} 36... Ke6 {[%clk 0:00:22.9]} 37. Ke2 {[%clk 0:00:30.7]} 37... Bxd6
{[%clk 0:00:20.8]} 38. Bxd6 {[%clk 0:00:28.7]} 38... Kxd6 {[%clk 0:00:21.8]} 39.
Nf4 {[%clk 0:00:21.2]} 39... Ke5 {[%clk 0:00:22.1]} 40. Nxd3+ {[%clk 0:00:22]}
40... exd3+ {[%clk 0:00:23.4]} 41. Rxd3 {[%clk 0:00:23.3]} 41... Rg4 {[%clk
0:00:25]} 42. Rh3 {[%clk 0:00:23.6]} 42... f4 {[%clk 0:00:23.7]} 43. Kf3 {[%clk
0:00:22.3]} 43... h5 {[%clk 0:00:24.3]} 44. Ke2 {[%clk 0:00:21.8]} 44... Kd4
{[%clk 0:00:24.8]} 45. Rd3+ {[%clk 0:00:21.6]} 45... Ke4 {[%clk 0:00:23.7]} 46.
f3+ {[%clk 0:00:21.4]} 46... Ke5 {[%clk 0:00:24.8]} 47. fxg4 {[%clk 0:00:22.7]}
47... hxg4 {[%clk 0:00:26.7]} 48. h5 {[%clk 0:00:22.4]} 48... Ke4 {[%clk
0:00:27.9]} 49. Rd8 {[%clk 0:00:22.6]} 49... f3+ {[%clk 0:00:29.8]} 50. Kf2
{[%clk 0:00:23.6]} 50... Kf4 {[%clk 0:00:31.2]} 51. Rf8+ {[%clk 0:00:23.1]}
51... Kg5 {[%clk 0:00:32.5]} 52. Kg3 {[%clk 0:00:21.6]} 52... Kxh5 {[%clk
0:00:33]} 53. Rh8+ {[%clk 0:00:22.3]} 53... Kg5 {[%clk 0:00:33.7]} 54. Rg8+
{[%clk 0:00:23.8]} 54... Kf5 {[%clk 0:00:35.6]} 55. Rxg4 {[%clk 0:00:24.9]}
55... Ke5 {[%clk 0:00:36.9]} 56. Kxf3 {[%clk 0:00:24.7]} 56... Kd6 {[%clk
0:00:38.8]} 57. Rg5 {[%clk 0:00:25.1]} 57... Kc6 {[%clk 0:00:39.7]} 58. Rxa5
{[%clk 0:00:25.8]} 1-0

[Event "*** Titled Tuesday Blitz"]
[Site "Chess.com"]
[Date "2019.01.01"]
[Round "7"]
[White "IMAghasiyevKamal"]
[Black "MatthewG-p4p"]
[Result "1-0"]
[WhiteElo "2554"]
[BlackElo "2633"]
[TimeControl "180+2"]
[EndTime "14:41:16 PST"]
[Termination "IMAghasiyevKamal won by resignation"]

1. d4 {[%clk 0:03:00.4]} 1... Nf6 {[%clk 0:02:58.8]} 2. c4 {[%clk 0:03:00.7]}
2... c5 {[%clk 0:02:59.9]} 3. Nf3 {[%clk 0:03:01.7]} 3... cxd4 {[%clk
0:03:00.1]} 4. Nxd4 {[%clk 0:03:02.8]} 4... e5 {[%clk 0:03:01.4]} 5. Nb3 {[%clk
0:02:59.1]} 5... Nc6 {[%clk 0:02:59.7]} 6. Nc3 {[%clk 0:02:56]} 6... Bb4 {[%clk
0:03:00.6]} 7. Bd2 {[%clk 0:02:56.7]} 7... O-O {[%clk 0:03:00.4]} 8. Nd5 {[%clk
0:02:55.3]} 8... Be7 {[%clk 0:02:55.2]} 9. g3 {[%clk 0:02:49.8]} 9... d6 {[%clk
0:02:52.7]} 10. Bg2 {[%clk 0:02:48.4]} 10... Nxd5 {[%clk 0:02:51.1]} 11. cxd5
{[%clk 0:02:45.6]} 11... Nb8 {[%clk 0:02:48.3]} 12. O-O {[%clk 0:02:46.2]} 12...
f5 {[%clk 0:02:49]} 13. Rc1 {[%clk 0:02:40.6]} 13... Nd7 {[%clk 0:02:46.5]} 14.
Qc2 {[%clk 0:02:38.3]} 14... Bg5 {[%clk 0:02:29.3]} 15. Bxg5 {[%clk 0:02:33]}
15... Qxg5 {[%clk 0:02:31.2]} 16. Qc7 {[%clk 0:02:34.1]} 16... Qf6 {[%clk
0:02:31.2]} 17. Nd2 {[%clk 0:02:22.8]} 17... Nb6 {[%clk 0:02:28.2]} 18. e4
{[%clk 0:01:51]} 18... f4 {[%clk 0:02:26.6]} 19. b3 {[%clk 0:01:46.8]} 19... Rf7
{[%clk 0:02:21.5]} 20. Qc3 {[%clk 0:01:43.4]} 20... Bg4 {[%clk 0:02:15.9]} 21.
f3 {[%clk 0:01:04.6]} 21... Bd7 {[%clk 0:01:51.9]} 22. Rfe1 {[%clk 0:01:01.1]}
22... fxg3 {[%clk 0:01:50.3]} 23. hxg3 {[%clk 0:01:01.6]} 23... h5 {[%clk
0:01:43.2]} 24. a4 {[%clk 0:01:00]} 24... Be8 {[%clk 0:01:32.7]} 25. a5 {[%clk
0:00:58.9]} 25... Nd7 {[%clk 0:01:33.4]} 26. Qe3 {[%clk 0:00:58.3]} 26... Nf8
{[%clk 0:01:29]} 27. Rc3 {[%clk 0:00:53.3]} 27... h4 {[%clk 0:01:24.1]} 28. gxh4
{[%clk 0:00:48.4]} 28... Ng6 {[%clk 0:01:24.1]} 29. Qg5 {[%clk 0:00:48.6]} 29...
Nxh4 {[%clk 0:01:23.3]} 30. Qxf6 {[%clk 0:00:48.7]} 30... Rxf6 {[%clk
0:01:25.2]} 31. Kf2 {[%clk 0:00:45.6]} 31... Bh5 {[%clk 0:01:09]} 32. Rec1
{[%clk 0:00:39.1]} 32... Raf8 {[%clk 0:00:47]} 33. Rc8 {[%clk 0:00:38.4]} 33...
g5 {[%clk 0:00:41.4]} 34. Kg3 {[%clk 0:00:31.1]} 34... Rf7 {[%clk 0:00:38]} 35.
Rxf8+ {[%clk 0:00:25.2]} 35... Kxf8 {[%clk 0:00:39]} 36. b4 {[%clk 0:00:22.2]}
36... Kg7 {[%clk 0:00:33.7]} 37. Rc3 {[%clk 0:00:22.1]} 37... Kh6 {[%clk
0:00:30]} 38. Bh3 {[%clk 0:00:22.2]} 38... Rg7 {[%clk 0:00:20.9]} 39. b5 {[%clk
0:00:21.4]} 39... Kh7 {[%clk 0:00:20.2]} 40. b6 {[%clk 0:00:22.4]} 40... axb6
{[%clk 0:00:21.4]} 41. axb6 {[%clk 0:00:23.7]} 41... Kh6 {[%clk 0:00:22.4]} 42.
Rc7 {[%clk 0:00:24.1]} 42... Ng6 {[%clk 0:00:23.6]} 43. Bc8 {[%clk 0:00:23.5]}
43... Ne7 {[%clk 0:00:18.8]} 44. Bxb7 {[%clk 0:00:20.8]} 44... g4 {[%clk
0:00:20.1]} 45. fxg4 {[%clk 0:00:16.8]} 45... Bxg4 {[%clk 0:00:21.4]} 46. Kf2
{[%clk 0:00:17.4]} 46... Kg5 {[%clk 0:00:19.3]} 47. Ke3 {[%clk 0:00:17.7]} 47...
Rh7 {[%clk 0:00:19.7]} 48. Bc6 {[%clk 0:00:18.1]} 48... Bc8 {[%clk 0:00:09.6]}
49. Nf3+ {[%clk 0:00:16.4]} 49... Kg4 {[%clk 0:00:10]} 50. b7 {[%clk 0:00:13.5]}
50... Bxb7 {[%clk 0:00:09.4]} 51. Rxb7 {[%clk 0:00:14.1]} 51... Rf7 {[%clk
0:00:09.5]} 52. Nxe5+ {[%clk 0:00:12.6]} 52... dxe5 {[%clk 0:00:10.7]} 53. d6
{[%clk 0:00:13.8]} 53... Rf3+ {[%clk 0:00:12.1]} 54. Ke2 {[%clk 0:00:13.9]}
54... Nxc6 {[%clk 0:00:09.5]} 55. Rg7+ {[%clk 0:00:14.8]} 55... Kf4 {[%clk
0:00:11]} 56. Rf7+ {[%clk 0:00:16.2]} 56... Kxe4 {[%clk 0:00:12.7]} 57. Rxf3
{[%clk 0:00:17.4]} 57... Nd4+ {[%clk 0:00:14.1]} 58. Kf2 {[%clk 0:00:18.7]}
58... Nxf3 {[%clk 0:00:11.4]} 59. d7 {[%clk 0:00:19.9]} 1-0

[Event "*** Titled Tuesday Blitz"]
[Site "Chess.com"]
[Date "2019.01.01"]
[Round "7"]
[White "Obito24"]
[Black "Lion_DL"]
[Result "1-0"]
[WhiteElo "2626"]
[BlackElo "2365"]
[TimeControl "180+2"]
[EndTime "14:41:16 PST"]
[Termination "Obito24 won by checkmate"]

1. d4 {[%clk 0:03:01.9]} 1... Nf6 {[%clk 0:03:00.3]} 2. Nf3 {[%clk 0:03:02.9]}
2... c5 {[%clk 0:03:01.8]} 3. d5 {[%clk 0:03:03.7]} 3... d6 {[%clk 0:03:02.9]}
4. Nc3 {[%clk 0:03:05.1]} 4... g6 {[%clk 0:03:02.5]} 5. e4 {[%clk 0:03:06.6]}
5... Bg7 {[%clk 0:03:03.7]} 6. Bb5+ {[%clk 0:03:08]} 6... Bd7 {[%clk 0:03:03.5]}
7. a4 {[%clk 0:03:09.4]} 7... O-O {[%clk 0:03:03.6]} 8. O-O {[%clk 0:03:10.3]}
8... Bg4 {[%clk 0:02:58.9]} 9. Re1 {[%clk 0:03:10.6]} 9... Nbd7 {[%clk
0:02:58.1]} 10. h3 {[%clk 0:03:11.4]} 10... Bxf3 {[%clk 0:02:58.5]} 11. Qxf3
{[%clk 0:03:12.9]} 11... e6 {[%clk 0:02:56.1]} 12. Qd1 {[%clk 0:02:56.4]} 12...
e5 {[%clk 0:02:53]} 13. a5 {[%clk 0:02:13.7]} 13... a6 {[%clk 0:02:49.9]} 14.
Be2 {[%clk 0:02:14.9]} 14... Ne8 {[%clk 0:02:44.5]} 15. Nb1 {[%clk 0:02:08.9]}
15... f5 {[%clk 0:02:42.8]} 16. Nd2 {[%clk 0:02:10.4]} 16... Ndf6 {[%clk
0:02:24.3]} 17. Bf3 {[%clk 0:02:09.5]} 17... fxe4 {[%clk 0:02:21.3]} 18. Bxe4
{[%clk 0:02:10.1]} 18... Nh5 {[%clk 0:02:20.1]} 19. Nc4 {[%clk 0:02:08.7]} 19...
Nf4 {[%clk 0:02:17.9]} 20. Nb6 {[%clk 0:01:50.2]} 20... Rb8 {[%clk 0:02:18]} 21.
b4 {[%clk 0:01:51.5]} 21... cxb4 {[%clk 0:02:14.8]} 22. Rb1 {[%clk 0:01:50.6]}
22... Nc7 {[%clk 0:02:08.9]} 23. Rxb4 {[%clk 0:01:48.5]} 23... Nb5 {[%clk
0:02:09.9]} 24. c4 {[%clk 0:01:04.7]} 24... Nd4 {[%clk 0:01:42]} 25. Be3 {[%clk
0:01:05]} 25... Nf5 {[%clk 0:01:28.3]} 26. Bd2 {[%clk 0:01:01.6]} 26... Qc7
{[%clk 0:01:24.1]} 27. Rb3 {[%clk 0:00:33.7]} 27... Nd4 {[%clk 0:01:19.6]} 28.
Rbe3 {[%clk 0:00:25.6]} 28... Rf7 {[%clk 0:01:19.9]} 29. Bb4 {[%clk 0:00:18.3]}
29... Rbf8 {[%clk 0:01:14]} 30. Rf1 {[%clk 0:00:16.6]} 30... Bh6 {[%clk
0:01:07.9]} 31. Kh2 {[%clk 0:00:14.9]} 31... Qe7 {[%clk 0:00:57.2]} 32. Rg3
{[%clk 0:00:11.8]} 32... Nh5 {[%clk 0:00:53.9]} 33. Qxh5 {[%clk 0:00:09.2]}
33... Bf4 {[%clk 0:00:49.9]} 34. Qg4 {[%clk 0:00:10.3]} 34... Bxg3+ {[%clk
0:00:46.2]} 35. Qxg3 {[%clk 0:00:11.3]} 35... Ne2 {[%clk 0:00:42.4]} 36. Qg4
{[%clk 0:00:11]} 36... Nf4 {[%clk 0:00:40.6]} 37. Bd2 {[%clk 0:00:11.8]} 37...
h5 {[%clk 0:00:40.8]} 38. Qg3 {[%clk 0:00:12.4]} 38... Ne2 {[%clk 0:00:38.6]}
39. Qxg6+ {[%clk 0:00:11.2]} 39... Rg7 {[%clk 0:00:39.8]} 40. Qe6+ {[%clk
0:00:11.7]} 40... Kh8 {[%clk 0:00:34.5]} 41. Bh6 {[%clk 0:00:08.6]} 41... Qxe6
{[%clk 0:00:32.3]} 42. dxe6 {[%clk 0:00:07.7]} 42... Re8 {[%clk 0:00:30.6]} 43.
Bxg7+ {[%clk 0:00:08.2]} 43... Kxg7 {[%clk 0:00:32]} 44. Bd5 {[%clk 0:00:06.7]}
44... Kf6 {[%clk 0:00:33.1]} 45. Re1 {[%clk 0:00:05.5]} 45... Nd4 {[%clk
0:00:31]} 46. Bxb7 {[%clk 0:00:06]} 46... Kxe6 {[%clk 0:00:28.1]} 47. Bd5+
{[%clk 0:00:06.1]} 47... Kf6 {[%clk 0:00:27.6]} 48. f4 {[%clk 0:00:07.5]} 48...
h4 {[%clk 0:00:25.5]} 49. fxe5+ {[%clk 0:00:08.4]} 49... dxe5 {[%clk 0:00:26.9]}
50. Nd7+ {[%clk 0:00:09.9]} 50... Kf5 {[%clk 0:00:27.9]} 51. Kg1 {[%clk
0:00:07.7]} 51... e4 {[%clk 0:00:25.6]} 52. Nc5 {[%clk 0:00:06]} 52... e3 {[%clk
0:00:25.7]} 53. Nxa6 {[%clk 0:00:06.7]} 53... Nc2 {[%clk 0:00:23.8]} 54. Rf1+
{[%clk 0:00:07.7]} 54... Ke5 {[%clk 0:00:24.4]} 55. Bf3 {[%clk 0:00:08.8]} 55...
Kd4 {[%clk 0:00:25.2]} 56. Nc7 {[%clk 0:00:09]} 56... Rc8 {[%clk 0:00:21.5]} 57.
Nb5+ {[%clk 0:00:09.5]} 57... Kd3 {[%clk 0:00:21.5]} 58. a6 {[%clk 0:00:10.3]}
58... Rxc4 {[%clk 0:00:21.6]} 59. Rd1# {[%clk 0:00:09.9]} 1-0